Cogmind - Beta 14 --- EXPLORER MODE // 2024.09.18 @ 11:58:59 Player: Foxtrot Result: Destroyed by as-96190 with Assembled Heavy Rifle Performance ------------- Evolutions (0) 0 Regions Visited (2) 400 Robots Destroyed (12) 60 Value Destroyed (301) 301 Prototype IDs (4) 80 Alien Tech Used (0) 0 Bonus (-60) -60 TOTAL SCORE: 781 Bonus ------- Friendly Fire -60 Cogmind --------- Core Integrity 0/250 Matter 219/300 Energy 12/100 System Corruption 3% Temperature Warm (108) Movement Core (250) Ox4 Location -10/Mines Parts ------- > --- POWER (2) -------- (None) > --- PROPULSION (2) --- (None) > --- UTILITY (2) ------ Medium Storage Unit Experimental Sensor Array > --- WEAPON (2) ------- Backup Laser I Plasma Flamer > --- INVENTORY (10) --- Medium Matter Pod (100) Structural Scanner Utility Shielding Peak State ------------ > --- POWER ------------ (None) > --- PROPULSION ------- (None) > --- UTILITY ---------- Medium Storage Unit Experimental Sensor Array > --- WEAPON ----------- Backup Laser I Plasma Flamer > --- INVENTORY -------- Medium Matter Pod Structural Scanner Utility Shielding [Rating: 16] Favorites ----------- Power Light Ion Engine Engine Light Ion Engine Propulsion Wheel Wheel Wheel Utility Weapon Shielding Device ECM Suite Storage Medium Matter Pod Protection Weapon Shielding Weapon Assault Rifle Energy Gun Backup Laser I Ballistic Gun Assault Rifle Launcher Grenade Launcher Special Weapon Mining Laser Build | -11 -10 -10 ------- Run | Yrd Mat Min Slots Evolved 1 | . 1 . Power 1 | . 1 . Propulsion . | . . . Utility . | . . . Weapon . | . . . Parts Attached 17 | 7 3 7 Power 2 | 1 . 1 Engine 2 | 1 . 1 Core . | . . . Reactor . | . . . Propulsion 4 | 2 2 . Treads . | . . . Leg . | . . . Wheel 4 | 2 2 . Hover . | . . . Flight . | . . . Utility 6 | 3 1 2 Device 3 | 2 . 1 Storage 2 | . 1 1 Processor . | . . . Hackware . | . . . Protection 1 | 1 . . Artifact . | . . . Weapon 5 | 1 . 4 Energy Gun 1 | . . 1 Energy Cannon . | . . . Ballistic Gun 1 | 1 . . Ballistic Cannon . | . . . Launcher 1 | . . 1 Special Weapon 2 | . . 2 Impact Weapon . | . . . Slashing Weapon . | . . . Piercing Weapon . | . . . Special Melee Weapon . | . . . Unidentified Prototypes 1 | . . 1 Parts Lost 7 | . 2 5 Power 3 | . 2 1 Propulsion 2 | . . 2 Utility . | . . . Weapon 2 | . . 2 Highest Loss Streak 5 | . 2 5 To Critical Strikes . | . . . Average Slot Usage (%) 77 | . 75 80 Engine 7 | . 7 7 Wheel 24 | . 25 23 Device 4 | . 2 8 Storage 10 | . 9 12 Protection 9 | . 12 3 Energy Gun 7 | . 5 11 Ballistic Gun 9 | . 12 3 Special Weapon 2 | . . 8 Peak Build Rating 16 | 6 8 16 Average Rating 7 | 3 6 12 On Entrance 4 | . 6 6 Naked Turns . | . . . Heaviest Build 20 | 8 10 20 Greatest Support 20 | 20 20 20 Greatest Overweight (x) . | . . . Average Overweight (x) . | . . . Largest Inventory Capacity 10 | 5 5 10 Average Capacity 5 | 5 5 7 Most Carried 5 | 5 5 5 Average Carried 4 | 3 4 4 Final Capacity 10 | 5 5 10 Final Carried 5 | 4 5 3 Class Distribution -------------------- 100% | Hacker-Mutant Dominant Class ---------------- Hacker-Mutant | -10/Materials Hacker-Mutant | -10/Mines Resources | -11 -10 -10 ----------- Run | Yrd Mat Min Matter Collected 570 | 279 243 48 Remotely . | . . . Salvage Created 406 | 54 330 22 Parts 28 | 5 23 . Haulers Intercepted . | . . . Recyclers Shooed . | . . . Parts Field Recycled . | . . . Retrieved Matter . | . . . Parts Self-Destructed . | . . . Prevented . | . . . Kills | -11 -10 -10 ------- Run | Yrd Mat Min Combat Hostiles Destroyed 21 | 1 7 13 Guns 8 | 1 7 . Cannons 1 | . . 1 AOE 12 | . . 12 Classes Destroyed 6 | 2 3 1 Worker 1 | . 1 . Tunneler 1 | 1 . . Watcher 2 | . 2 . Swarmer 1 | . 1 . Grunt 7 | 1 6 . Assembled 13 | . . 13 Best Kill Streak 13 | 2 4 13 Combat Bots Only 13 | 1 2 13 Max Kills in Single Turn 3 | 1 1 3 Gunslinging . | . . . Exploded 3 | . . 3 Melee . | . . . Uniques/NPCs Destroyed . | . . . Combat | -11 -10 -10 -------- Run | Yrd Mat Min Hostile Shots Fired 107 | 10 48 49 Missed 32 | 2 16 14 Damage Taken 753 | 56 253 444 Core 254 | 18 77 159 Absorbed by Shields . | . . . Redirected to Shielding 12 | . 12 . Ignored by Resistances 449 | 35 159 255 Core Remaining (%) 92 | 92 . . Volleys Fired 62 | 3 45 14 Largest 2 | 1 2 2 Hottest 130 | 20 50 130 Shots Fired 78 | 3 58 17 Gun 68 | 3 58 7 Cannon . | . . . Launcher 7 | . . 7 Special 3 | . . 3 Kinetic 48 | 3 45 . Thermal 23 | . 13 10 Explosive 7 | . . 7 Electromagnetic . | . . . Robot Hit Streak 27 | 2 27 20 Robot Miss Streak 2 | . 2 1 Penetration Max . | . . . Secondary Targets 1 | . 1 . Max Gunslinging Chain 1 | . 1 . Shots Hit Robots 64 | 2 48 14 Core Hits 58 | 3 17 38 Critical Kills . | . . . Critical Parts Destroyed . | . . . Critical Strikes . | . . . Melee Attacks . | . . . Impact . | . . . Slashing . | . . . Piercing . | . . . Sneak Attacks . | . . . Combat Hostiles . | . . . Follow-up Attacks . | . . . Damage Inflicted 1654 | 35 556 1063 Guns 641 | 25 549 67 Cannons . | . . . Explosions 938 | . . 938 Melee . | . . . Ramming 49 | 10 7 32 Kinetic 474 | 25 449 . Thermal 193 | . 100 93 Explosive 938 | . . 938 Electromagnetic . | . . . Impact . | . . . Slashing . | . . . Piercing . | . . . Highest Corruption 3 | . 1 3 Average Corruption 1 | . 1 1 Corruption Purged . | . . . Corruption Blocked . | . . . Effects 3 | . . 3 Message Errors 1 | . . 1 Matter Fused 2 | . . 2 Overload Shots . | . . . Overflow Damage 43 | . . 43 Projectiles . | . . . Explosions 43 | . . 43 Melee . | . . . Knockbacks . | . . . Impact . | . . . Kinetic . | . . . Secondary . | . . . Self-Inflicted Damage 115 | 5 3 107 Shots 5 | . . 5 Rammed 8 | 1 2 5 Targets Rammed 8 | 1 2 5 Kicked . | . . . Crushed . | . . . Highest Temperature 108 | . 17 108 Average Temperature 24 | . 9 30 Received Heat Transfer 355 | 48 207 100 Siege Activations . | . . . Robots Corrupted . | . . . Combat Hostiles . | . . . Parts Fried . | . . . Impact Corruptions . | . . . Robots Melted . | . . . Combat Hostiles . | . . . Parts Melted . | . . . Heat Transferred 826 | . 407 419 Parts Sabotaged . | . . . Parts Stolen . | . . . Parts Stripped . | . . . Power Chain Reactions . | . . . Alert | -11 -10 -10 ------- Run | Yrd Mat Min Peak Influence 251 | 25 251 14 Initial 12 | . 12 3 Average 56 | 7 87 2 Maximum Alert Level 1 | . 1 . Low Security (%) 91 | 100 86 100 Level 1 8 | . 13 . Level 2 . | . . . Level 3 . | . . . Level 4 . | . . . Level 5 . | . . . High Security . | . . . Max Security . | . . . Squads Dispatched 3 | . 3 . Investigation 3 | . 3 . Extermination . | . . . Reinforcement . | . . . Assault . | . . . Garrison . | . . . Intercept . | . . . Searches Triggered . | . . . Construction Impeded . | . . . Haulers Reinforced . | . . . Active Scanning Responses . | . . . Cargo Convoy Interrupts . | . . . Stealth | -11 -10 -10 --------- Run | Yrd Mat Min Distress Signals . | . . . Communications Jammed . | . . . Distress Signals . | . . . Times Spotted 32 | 2 10 20 Peak Tracking Total 20 | 1 2 20 Tactical Retreats 2 | 1 1 . Traps | -11 -10 -10 ------- Run | Yrd Mat Min Traps Triggered 2 | . 2 . Indirectly . | . . . Trap Hack Attempts . | . . . Triggered . | . . . Disarmed . | . . . Reprogrammed . | . . . Reused . | . . . Traps Extracted . | . . . Installed . | . . . Triggered . | . . . Machines | -11 -10 -10 ---------- Run | Yrd Mat Min Machines Disabled . | . . . Max in Single Turn . | . . . Machines Repaired . | . . . Machines Dismantled . | . . . Machines Sabotaged . | . . . Overloaded Fab Kills . | . . . Hacking | -11 -10 -10 --------- Run | Yrd Mat Min Machines Accessed 6 | . 6 . Terminals 4 | . 4 . Fabricators . | . . . Repair Stations 1 | . 1 . Recycling Units 1 | . 1 . Scanalyzers . | . . . Garrison Access . | . . . Total Hacks 31 | . 31 . Successful 21 | . 21 . Failed 10 | . 10 . Catastrophic . | . . . Database Lockouts . | . . . Manual . | . . . Terminals 25 | . 25 . Fabricators . | . . . Repair Stations 3 | . 3 . Recycling Units 3 | . 3 . Scanalyzers . | . . . Garrison Access . | . . . Terminal Hacks 18 | . 18 . Record 4 | . 4 . Robot Analysis 1 | . 1 . Prototype ID Bank 2 | . 2 . Branch Access Points 1 | . 1 . Locate Traps 1 | . 1 . Dispatch Records 2 | . 2 . Investigation Status 1 | . 1 . Reinforcement Status 1 | . 1 . Recall Reinforcements 1 | . 1 . Hauler Manifests 2 | . 2 . Registered Components 1 | . 1 . Zone Layout 1 | . 1 . Fabricator Hacks . | . . . Repair Station Hacks 2 | . 2 . Scan Component 1 | . 1 . Refit 1 | . 1 . Recycling Unit Hacks 1 | . 1 . Process 1 | . 1 . Scanalyzer . | . . . Garrison Access Hacks . | . . . Unauthorized Hacks . | . . . Terminals . | . . . Fabricators . | . . . Repair Stations . | . . . Recycling Units . | . . . Scanalyzers . | . . . Garrison Access . | . . . Data Cores Recovered . | . . . Used . | . . . Hacking Detections 5 | . 5 . Full Trace Events 4 | . 4 . Feedback Events 1 | . 1 . Corruption 1 | . 1 . Feedback Blocked . | . . . Robot Schematics Acquired . | . . . Robots Built . | . . . Authchips . | . . . Time . | . . . Total Robot Build Rating . | . . . Part Schematics Acquired . | . . . Parts Built . | . . . Authchips . | . . . Time . | . . . Total Part Build Rating . | . . . Parts Repaired . | . . . Time . | . . . Parts Recycled . | . . . Recycled Matter 2 | . 2 . Retrieved Matter . | . . . Retrieved Components . | . . . Parts Scanalyzed . | . . . Part Schematics Acquired . | . . . Parts Damaged . | . . . Bothacking | -11 -10 -10 ------------ Run | Yrd Mat Min Used RIF Installer . | . . . Robots Hacked . | . . . Non-combat . | . . . Combat . | . . . Robot Hacks Applied . | . . . Relay Couplers Released . | . . . Fabnet Peak Effective % . | . . . Robots Rewired . | . . . Allies Hacked . | . . . Hacks Repelled . | . . . Allies | -11 -10 -10 -------- Run | Yrd Mat Min Total Allies 2 | . . 2 Largest Group 2 | . . 2 Highest-Rated Group 41 | . . 41 Highest-Rated Ally 31 | . . 31 Total Orders . | . . . Ally Attacks 7 | . . 7 Total Damage 83 | . . 83 Kills 3 | . . 3 Allies Corrupted . | . . . Allies Melted . | . . . Intel | -11 -10 -10 ------- Run | Yrd Mat Min Robot Analysis Total 1 | . 1 . Derelict Logs Recovered 2 | . . 2 Drone Launches . | . . . Drone Recoveries . | . . . Exploration | -11 -10 -10 ------------- Run | Yrd Mat Min Turns Passed 1000 | 110 625 265 Spaces Moved 1038 | 134 636 268 Core 68 | 68 . . Treads . | . . . Legs . | . . . Wheels 970 | 66 636 268 Hover . | . . . Flight . | . . . Fastest Speed 50 | 50 80 80 Average Speed 78 | 64 80 80 Slowest Speed 80 | 80 80 80 Overloaded Moves . | . . . Propulsion Burnouts . | . . . Robots Hopped . | . . . Cave-ins Triggered . | . . . Exploration Rate (%) 39 | 6 63 50 Regions Visited 2 Branch Regions 1 Pre-discovered Areas . | . . . Known Exits Taken 2 | 1 1 . Unknown Exits Taken . | . . . Scrap Searched . | . . . Spaces Dug . | . . . Terrain Destroyed 46 | . . 46 Melee . | . . . Projectile . | . . . AOE 46 | . . 46 Terrain Rammed . | . . . Walls Destroyed . | . . . Machines Disabled . | . . . Actions | -11 -10 -10 --------- Run | Yrd Mat Min Total 1147 | 153 694 300 Wait 2 | . 2 . Move 1036 | 133 635 268 Hop . | . . . Pick Up 15 | 8 4 3 Fast Attach 2 | 2 . . Attach 12 | 5 1 6 Detach 2 | 1 . 1 Swap 3 | . 2 1 Drop 5 | . 3 2 Fire 62 | 3 45 14 Melee . | . . . Ram 8 | 1 2 5 Kick . | . . . Crush . | . . . Escape Stasis . | . . . Rewire . | . . . Trap . | . . . Miscellaneous . | . . . Route ------- -11/Scrapyard -10/Materials (discovered 3 exits: *Mat / *Min x2) -10/Mines History --------- Turn | Location | Event 2 | -11/Scrapyard | Met Revision 17 34 | -11/Scrapyard | Identified exit to Materials 34 | -11/Scrapyard | Discovered exit to Materials (range 8) 111 | -11/Scrapyard | Entered Materials 111 | -10/Materials | Evolved 1 slot: Power x1 221 | -10/Materials | Identified exit to Mines 221 | -10/Materials | Discovered exit to Mines (range 9) 306 | -10/Materials | Build established: Hacker-Mutant 447 | -10/Materials | Identified exit to Materials 447 | -10/Materials | Discovered exit to Materials (range 7) 717 | -10/Materials | Discovered exit to Mines (range 13) 736 | -10/Materials | Entered Mines 757 | -10/Mines | Met a Derelict bent on vengeance 761 | -10/Mines | Found a hidden stash of uninstalled traps 813 | -10/Mines | Found a damaged Exp. Sensor Array with a note attached 815 | -10/Mines | Found Prototype Device 820 | -10/Mines | Identified Exp. Sensor Array 920 | -10/Mines | Learned Materials terminal intel 952 | -10/Mines | Assembled infested the area 959 | -10/Mines | A weapon hastily lodged in a ceiling crevice suddenly fell to the ground 980 | -10/Mines | Core integrity fell below 50% 986 | -10/Mines | Core integrity fell below 20% 1001 | -10/Mines | Destroyed by as-96190 with Assembled Heavy Rifle Last Messages --------------- Wheel destroyed. as-09249 destroyed. as-37093 destroyed. 2I-KJY(g) knocked back. as-47828 destroyed. Destroyed Asb. Hover Unit. Destroyed Imp. Heat Sink. as-14049 destroyed. 2I-KJY(g) destroyed. as-91403 destroyed. as-41416 destroyed. as-80704 destroyed. Ion Engine destroyed. Mining Laser destroyed. Wheel destroyed. Destroyed Wheel. Grenade Launcher destroyed. Destroyed Grenade Launcher. The unstable cave ceiling collapses. as-82280 destroyed. Map ----- +----------------------------------------------------+ | ?????????????????????????????? | | ?????????????????????????????? | | ?????????????????????????????? | | ??????? ?????????????????????? | | ??????? ?????????????????????? | | ??????? ?????????????????????? | | ??????? ?????????????????????? | | ??????? ?????????????????????? | | ??????? ?????????????????????? | | ###???? ?????????????????????? | | #???# #????????????????????? | | # #???# #????????????????????? | | # #???# #????????????????????? | | # #???# ????????????????????? | | # #???# #????????????????????? | | ##??# #????????????????????? | | #### #????????????????????? | | ###########??????????? | | ? #??????????? | | #### ##########?#??????????? | | ###??# #????????# #####??????? | | ?????# #????????# ##?????? | | ?????# ????????#### ##?#### | | ?????###???????????## # # | | ????????????????##### # | | ????????????# @ # | | ????????????######## # | | ??????????????????# a | | ??????????????????# a | | ?????????????????# # # | | ????????????????# % # | | ????????????????### ## | | ??????????????????##### #? | | ??????????????????????## #? | | ???????????????????????# #? | | ??????????????????????? ##? | | ??????????????????????? #?? | | ??????????????????????? < ##?? | | ??????????????????????? #???? | | ??????????????????????? #????? | | ??????????????????????? ?????? | | ?????????????????????????????? | | ?????????????????????????????? | | #? #???????????????????????? | | #???????????????????????? | | #????????????????????????? | | #?????????????????????????? | | ??##?????????????????????????? | | ?????????????????????????????? | | ?????????????????????????????? | +----------------------------------------------------+ Best States ------------- Heat Dissipation 25 Energy Generation 14 Energy Capacity 250 Matter Stores 400 Matter Capacity 400 Sight Range 16 Robot Scan Range 20 Terrain Scan Density 10 ECM Strength 1 Resistance: KI 35 Resistance: TH 35 Resistance: EX 35 Resistance: EM 35 Resistance: I 35 Resistance: S 35 Resistance: P 35 Weapon Shielding 33 Evasion (%) 50 Offensive Hacking 20 Item Schematics ----------------- None Robot Schematics ------------------ None Fabricated ------------ Nothing Alien Tech Used ----------------- None Achievements -------------- Hunted Maximum Efficiency Challenges ------------ None Game ------ Seed ElectronUtilityCharger Manual? 0 Play Time 00:21:27 Cumulative 1.1 hours Start 2024.09.18 @ 11:28:09 End 2024.09.18 @ 11:58:59 Sessions 1 Manual Loads 0 Difficulty Explorer Special Mode None Game No. 3 Rogue 0 Adventurer 0 Explorer 3 Win Type - Total 0 Types 0/0/0/0/0/0/0/0/0 Lore% 3 Gallery% 3 Achievement% 5 Wizard Run 0 Options --------- Layout 1 ASCII 0 Keyboard 0 Movement Arrows Keybinds 0 Fullscreen 1 Font 16/SmallcapsGlow Map View 50x40 Zoom Use 62% Tactical HUD 0 Map Filters NONE Filters NONE Steam SD RUN: 72cf6c86-c65e-450b-a76c-104b87490701